bitfinex-derivatives/quotes_ETHF0:USTF0_20250502
["timestamp","ask_amount","ask_price","bid_price","bid_amount"]
[1746199986744,0.43432608,1839.2,1839.1,45.3293]
[1746199987046,1.08687,1839.5,1839.4,1.08693]
[1746199987244,2.83734,1839.6,1839.5,1.08687]
[1746199987540,3.27165708,1839.6,1839.5,1.08687]
[1746199987746,2.18481708,1839.6,1839.5,1.08687]
[1746199987945,3.27162708,1839.6,1839.5,1.08687]
[1746199989338,3.27145891,1839.6,1839.5,1.08687]
[1746199990143,2.83731,1839.6,1839.5,1.08687]
[1746199990352,3.27130567,1839.6,1839.5,1.08687]
[1746199990541,2.83731,1839.6,1839.5,1.08687]
[1746199990738,3.26627921,1839.6,1839.5,1.08687]
[1746199991549,2.17946921,1839.6,1839.5,1.08687]
[1746199991750,3.26627921,1839.6,1839.5,1.08687]
[1746199991950,3.26634135,1839.6,1839.5,1.08687]
[1746199992446,3.26634135,1839.6,1839.3,4.45587]
[1746199992447,1.08691,1839.5,1839.4,1.08688]
[1746199992643,1.51594135,1839.5,1839.4,1.08688]
[1746199992845,1.08709,1839.2,1839.1,1.08703]
[1746199993147,1.08702,1839.3,1839.2,1.087]
[1746199993342,1.51597077,1839.3,1839.2,1.087]
[1746199993650,3.19577077,1839.3,1839.2,1.087]
[1746199996453,2.76682,1839.3,1839.2,1.087]
[1746199996655,3.1954538,1839.3,1839.2,1.087]
[1746199997162,3.1954138,1839.3,1839.2,1.087]
[1746199997555,3.19535043,1839.3,1839.2,1.087]
[1746199997856,2.10837043,1839.3,1839.2,1.087]
[1746199998959,2.10837043,1839.3,1839.2,4.4915]
[1746199999452,5.71275923,1839.3,1839.2,4.4915]
[1746199999756,5.71274387,1839.3,1839.2,4.4915]
[1746199999957,6.79972387,1839.3,1839.2,1.087]
[1746200000157,8.36782387,1839.3,1839.2,1.087]
[1746200001157,7.28084387,1839.3,1839.2,1.087]
[1746200001371,8.36782387,1839.3,1839.2,1.087]
[1746200002354,4.76343507,1839.3,1839.2,1.087]
[1746200002557,1.08704,1839.2,1839.0,3.2078]
[1746200002851,0.42855507,1839.1,1839.0,1.0871]
[1746200003057,7.58638,1839.2,1839.1,1.0871]
[1746200003451,7.58634,1839.2,1839.1,1.0871]
[1746200003953,4.80747574,1839.2,1839.1,1.0871]
[1746200004155,3.72043574,1839.2,1839.1,1.0871]
[1746200004358,4.80747574,1839.2,1839.1,1.0871]
[1746200004557,4.37854,1839.2,1839.1,1.0871]
[1746200004860,4.80729085,1839.2,1839.1,1.0871]
[1746200005459,3.72025085,1839.2,1839.1,1.0871]
[1746200005662,2.11345085,1839.2,1839.1,1.0871]
[1746200005958,2.11345085,1839.2,1839.1,6.0443]
[1746200006157,0.42875085,1839.2,1839.1,11.0443]
[1746200006362,5.2451888,1839.5,1839.4,1.08693]
[1746200006753,5.67404111,1839.5,1839.4,2.83633]
[1746200007058,7.62852925,1839.5,1839.4,7.83633]
[1746200007257,7.62852925,1839.5,1839.4,13.74833]
[1746200007452,8.98594346,1839.7,1839.6,1.08681]
[1746200007759,7.82466346,1839.7,1839.6,48.78661]
[1746200007952,7.82466346,1839.7,1839.6,54.22475689]
[1746200008152,7.82466346,1839.7,1839.6,57.41825689]
[1746200008451,6.67764346,1839.7,1839.6,57.41825689]
[1746200009459,6.67764346,1839.7,1839.6,56.98011]
[1746200010256,5.07164346,1839.7,1839.6,56.98011]
[1746200010860,5.07164346,1839.7,1839.6,62.89211]
[1746200011057,3.42659346,1839.7,1839.6,62.89211]
[1746200011251,1.83948346,1839.7,1839.6,63.33394427]
[1746200011562,2.72326,1840.1,1840.0,1.08657]
[1746200012969,1.6367,1840.1,1840.0,1.08657]
[1746200013264,2.72321,1840.1,1840.0,1.08657]
[1746200013564,1.6367,1840.1,1840.0,1.08657]
[1746200013760,2.72321,1840.1,1840.0,1.08657]
[1746200014156,1.0866,1840.0,1839.9,1.08658]
[1746200014358,4.4588,1840.0,1839.9,1.08658]
[1746200014565,1.08667,1839.9,1839.6,53.1133]
[1746200014765,2.82587,1839.9,1839.7,1.08673]
[1746200014964,1.08669,1839.8,1839.7,1.08673]
[1746200015262,1.7392,1839.8,1839.7,1.08673]
[1746200015663,2.82595,1839.8,1839.6,47.2013]
[1746200015963,1.7392,1839.8,1839.7,1.08675]
[1746200016263,1.08669,1839.8,1839.7,1.08675]
[1746200017063,1.08675,1839.7,1839.6,47.2013]
[1746200017270,1.08675,1839.7,1839.6,45.08031]
[1746200017565,1.08675,1839.7,1839.6,43.9935]
[1746200018658,1.08675,1839.7,1839.6,3.1935]
[1746200018859,1.08681,1839.6,1839.5,1.08682]
[1746200019159,1.08679,1839.7,1839.6,1.08678]
[1746200019358,3.4693,1840.0,1839.5,44.0078]
[1746200019673,0.4234803,1839.9,1839.8,1.08664]
[1746200019973,1.08658,1840.0,1839.9,1.08657]
[1746200020264,1.51011187,1840.0,1839.9,2.79427]
[1746200020466,1.51007726,1840.0,1839.9,2.79427]
[1746200021166,1.51017412,1840.0,1839.9,2.79427]
[1746200022264,1.08658,1840.0,1839.9,2.79427]
[1746200022567,1.51005009,1840.0,1839.9,2.79427]
[1746200022770,0.42347009,1840.0,1839.9,2.79427]
[1746200023665,1.08653,1840.1,1840.0,1.08657]
[1746200024468,1.51000436,1840.1,1840.0,1.08657]
[1746200024668,1.08657,1840.0,1839.9,2.79428]
[1746200024970,1.51016578,1840.0,1839.9,2.79428]
[1746200025165,1.08657,1840.0,1839.9,2.79428]
[1746200025362,1.51016636,1840.0,1839.9,2.79428]
[1746200025563,0.42359636,1840.0,1839.9,2.79428]
[1746200025759,4.39558,1840.2,1839.9,1.7077]
[1746200026065,1.08655,1840.1,1840.0,1.08651]
[1746200026264,1.51025596,1840.1,1840.0,1.08651]
[1746200026466,1.51025218,1840.1,1840.0,1.08651]
[1746200027070,0.42370218,1840.1,1840.0,1.08651]
[1746200027672,1.51021218,1840.1,1840.0,1.08651]
[1746200028272,1.08651,1840.1,1840.0,1.08651]
[1746200029170,1.08657,1840.0,1839.9,1.08658]
[1746200030563,1.51047418,1840.0,1839.9,1.08658]
[1746200031279,1.08663,1839.9,1839.8,2.76453]
[1746200031670,1.08663,1839.9,1839.8,1.08663]
[1746200031970,3.63170418,1839.9,1839.6,7.4407]
[1746200032277,1.08681,1839.6,1839.5,41.88682]
[1746200032775,1.51071418,1839.6,1839.5,41.88682]
[1746200033081,0.42390418,1839.6,1839.5,45.09462]
[1746200033673,2.06880418,1839.6,1839.5,45.09462]
[1746200034075,0.42390418,1839.6,1839.5,46.79552]
[1746200034279,1.6449,1839.9,1839.8,1.08669]
[1746200034689,3.2078,1840.1,1840.0,1.08657]
[1746200035089,0.42437198,1840.1,1840.0,4.29437]
[1746200035394,0.42437198,1840.1,1840.0,1.08657]
[1746200035990,2.06927198,1840.1,1840.0,1.08657]
[1746200036197,2.06927198,1840.1,1840.0,4.29437]
[1746200036696,2.06927198,1840.1,1840.0,7.98337]
[1746200037497,2.06927198,1840.1,1840.0,4.77557]
[1746200039096,3.15578198,1840.1,1840.0,4.77557]
[1746200039688,2.06927198,1840.1,1839.8,10.6905]
[1746200039898,2.06927198,1840.1,1839.8,6.99863]
[1746200039899,1.08663,1839.9,1839.8,6.99863]
[1746200040093,1.53780211,1839.9,1839.8,6.99863]
[1746200040291,6.28250211,1839.9,1839.8,1.08663]
[1746200040592,5.19579944,1839.9,1839.8,1.08663]
[1746200040890,5.19580799,1839.9,1839.8,1.08663]
[1746200041094,6.28243799,1839.9,1839.8,1.08663]
[1746200041295,5.19580799,1839.9,1839.8,1.08663]
[1746200041899,2.10330799,1839.9,1839.8,4.29443]
[1746200042088,2.10330799,1839.9,1839.8,5.88443]
[1746200042289,0.45110799,1839.9,1839.8,5.88443]
[1746200042490,0.45110799,1839.9,1839.8,10.88443]
[1746200042701,0.45110799,1839.9,1839.8,16.79643]
[1746200042905,1.7284,1840.2,1840.1,1.08651]
[1746200043396,2.17972241,1840.2,1840.1,1.08651]
[1746200043592,2.17972241,1840.2,1840.1,4.28791]
[1746200043994,2.17966826,1840.2,1840.1,4.28791]
[1746200044195,1.7284,1840.2,1840.1,4.28791]
[1746200044400,2.17969224,1840.2,1840.1,4.28791]
[1746200045389,5.39041624,1840.3,1840.2,1.08645]
[1746200045604,5.39041624,1840.3,1840.2,2.67945]
[1746200045902,7.11881624,1840.3,1840.2,2.67945]
[1746200046301,7.57006591,1840.3,1840.2,2.67945]
[1746200046505,7.57006591,1840.3,1840.2,1.08645]
[1746200047794,2.17964967,1840.3,1840.2,1.08645]
[1746200048901,1.08645,1840.2,1840.1,1.08647]
[1746200049102,1.08651,1840.1,1840.0,10.20633]
[1746200049302,1.53775967,1840.1,1840.0,6.99857]
[1746200049607,3.20505967,1840.1,1840.0,6.99857]
[1746200050104,8.20505967,1840.1,1840.0,5.912]
[1746200050303,9.83484967,1840.1,1839.7,1.0867]
[1746200050508,1.08671,1839.8,1839.7,1.0867]
[1746200050807,1.53795967,1839.8,1839.7,1.0867]
[1746200051306,1.08678,1839.7,1839.6,1.08676]
[1746200051505,4.30338,1839.7,1839.6,1.08676]
[1746200051700,4.78077975,1839.7,1839.6,1.08676]
[1746200051907,1.08681,1839.6,1839.5,41.88685]
[1746200052207,1.08687,1839.5,1839.4,14.21547023]
[1746200052403,3.19084975,1839.6,1839.5,1.08687]
[1746200052604,1.56424975,1839.6,1839.5,41.88687]
[1746200053008,1.56424975,1839.6,1839.5,1.08687]
[1746200053608,0.47739975,1839.6,1839.5,1.08687]
[1746200053809,1.08687,1839.5,1839.4,47.79887]
[1746200054108,0.47739975,1839.5,1839.4,47.79887]
[1746200055003,0.47739975,1839.5,1839.4,41.88687]
[1746200055713,1.56426975,1839.5,1839.4,41.88687]
[1746200056211,1.56369685,1839.5,1839.4,41.88687]
[1746200056410,0.47682685,1839.5,1839.4,41.88687]
[1746200056804,1.08686,1839.6,1839.5,1.08687]
[1746200057005,1.56364579,1839.6,1839.5,1.08687]
[1746200058104,1.08686,1839.6,1839.5,1.08687]
[1746200058314,2.67679,1839.7,1839.6,1.08681]
[1746200058516,1.59,1839.7,1839.6,1.08681]
[1746200059211,5.39041624,1839.8,1839.7,1.08675]
[1746200060509,5.39041624,1839.8,1839.7,4.29455]
[1746200061709,5.39041624,1839.8,1839.7,1.08675]
[1746200062814,2.62031,1840.0,1839.9,1.08663]
[1746200063517,4.28861,1840.0,1839.9,1.08663]
[1746200064811,1.08668,1839.9,1839.7,1.6449]
[1746200065016,2.84718,1839.9,1839.8,1.08669]
[1746200065314,1.08674,1839.8,1839.5,11.14217]
[1746200065616,1.08679,1839.7,1839.6,1.08676]
[1746200066821,2.84725,1839.8,1839.7,1.08675]
[1746200067019,1.0868,1839.7,1839.6,1.08676]
[1746200068120,1.08681,1839.6,1839.5,4.29462]
[1746200069013,2.66731,1839.6,1839.5,4.29462]
[1746200069813,1.5805,1839.6,1839.5,4.29462]
[1746200070015,1.08671,1839.8,1839.5,3.2078]
[1746200070214,7.02241624,1839.9,1839.8,1.08669]
[1746200070717,5.39041624,1839.9,1839.8,1.08669]
[1746200071116,6.47704624,1839.9,1839.8,1.08669]
[1746200071319,5.39041624,1839.9,1839.8,1.08669]
[1746200071720,5.86694578,1839.9,1839.8,1.08669]
[1746200072123,5.86694578,1839.9,1839.8,9.29449]
[1746200073215,3.60254578,1839.9,1839.8,9.29449]
[1746200073415,0.39454624,1839.9,1839.8,9.29449]
[1746200073615,4.3831065,1840.0,1839.9,1.08663]
[1746200073915,2.9720265,1840.0,1839.9,6.38573]
[1746200074117,2.9720265,1840.0,1839.9,11.38573]
[1746200074321,1.4501765,1840.0,1839.9,11.38573]
[1746200074515,6.5e-06,1840.0,1839.9,11.38573]
[1746200078614,6.5e-06,1840.0,1839.9,2.69773]
[1746200078814,6.5e-06,1840.0,1839.9,6.38473]
[1746200079020,0.47149187,1840.0,1839.9,4.77363]
[1746200079727,0.47136682,1840.0,1839.9,4.77363]
[1746200080528,0.47136682,1840.0,1839.9,6.52333]
[1746200082326,0.47098363,1840.0,1839.9,6.52333]
[1746200082624,0.47098363,1840.0,1839.9,4.77363]
[1746200082828,0.47098363,1840.0,1839.9,6.36493]
[1746200083030,0.47097713,1840.0,1839.9,6.36493]
[1746200083826,1.6922,1840.3,1840.2,1.08645]
[1746200084027,2.16320407,1840.3,1840.2,1.08645]
[1746200084632,2.16320407,1840.3,1840.2,4.77345]
[1746200085432,2.16320407,1840.3,1840.2,7.98125]
[1746200086533,2.16311559,1840.3,1840.2,8.41632407]
[1746200086732,2.16310941,1840.3,1840.2,8.41632407]
[1746200087135,2.16310941,1840.3,1840.2,4.77345]
[1746200087428,1.6922,1840.3,1840.2,7.98125]
[1746200087631,2.16306784,1840.3,1840.2,7.98125]
[1746200088827,2.16306784,1840.3,1840.2,4.77345]
[1746200089228,2.16290846,1840.3,1840.2,4.77345]
[1746200089632,2.16288155,1840.3,1840.2,4.77345]
[1746200090335,2.16291882,1840.3,1840.2,4.77345]
[1746200090633,1.6922,1840.3,1840.2,4.77345]
[1746200090835,2.16285687,1840.3,1840.2,4.77345]
[1746200091731,3.24924687,1840.3,1840.2,4.77345]
[1746200092730,2.77859,1840.3,1840.2,4.77345]
[1746200092927,3.24924439,1840.3,1840.2,4.77345]
[1746200093528,2.16285439,1840.3,1840.2,4.77345]
[1746200094225,1.08651,1840.1,1840.0,1.08654]
[1746200094629,1.55716439,1840.1,1840.0,1.08654]
[1746200094938,3.12716439,1840.1,1840.0,1.08654]
[1746200096234,2.04065439,1840.1,1840.0,1.08654]
[1746200096529,3.12716439,1840.1,1840.0,1.08654]
[1746200097236,2.04065439,1840.1,1840.0,1.08654]
[1746200097430,2.65651,1840.1,1840.0,1.08654]
[1746200097735,4.77106758,1840.1,1840.0,1.08654]
[1746200098040,3.2138,1840.1,1840.0,1.08654]
[1746200098336,4.77106119,1840.1,1840.0,1.08654]
[1746200098536,3.68455119,1840.1,1840.0,1.08654]
[1746200098928,3.68484388,1840.1,1840.0,1.08654]
[1746200099131,3.68484388,1840.1,1839.8,3.685]
[1746200099328,8.05307388,1840.0,1839.9,1.08663]
[1746200099631,7.58203,1840.0,1839.9,1.08663]
[1746200099933,8.05362349,1840.0,1839.9,1.08663]
[1746200101126,6.96699349,1840.0,1839.9,1.08663]
[1746200101433,3.75919349,1840.0,1839.9,1.08663]
[1746200102131,4.84576349,1840.0,1839.9,1.08663]
[1746200102332,1.08663,1839.9,1839.8,4.29444]
[1746200102529,2.71393,1839.9,1839.8,4.29444]
[1746200102936,1.08673,1839.8,1839.7,1.08672]
[1746200103138,2.71403,1839.8,1839.7,1.08672]
[1746200103337,12.55195,1839.8,1839.4,40.8]
[1746200103638,1.08687,1839.5,1839.4,1.08689]
[1746200103837,5.92485,1839.6,1839.2,3.685]
[1746200104038,1.08704,1839.2,1839.1,7.21658023]
[1746200104330,1.08704,1839.2,1839.1,8.30368023]
[1746200104538,4.48354,1839.2,1839.1,8.30368023]
[1746200104727,4.48354,1839.2,1839.1,7.21658023]
[1746200105133,4.95513349,1839.2,1839.1,7.21658023]
[1746200105335,4.95513349,1839.2,1839.1,8.30368023]
[1746200105536,4.95406944,1839.2,1839.1,8.30368023]
[1746200105729,4.95406944,1839.2,1839.1,7.21658023]
[1746200106734,4.95406944,1839.2,1839.1,8.30368023]
[1746200107124,4.95406944,1839.2,1839.1,7.21658023]
[1746200107532,4.95406944,1839.2,1839.1,8.30368023]
[1746200108333,4.95325137,1839.2,1839.1,7.21658023]
[1746200108537,4.95325137,1839.2,1839.1,8.30368023]
[1746200108739,4.95325137,1839.2,1839.1,1.0871]
[1746200109036,4.95330316,1839.2,1839.1,1.0871]
[1746200109229,3.86626316,1839.2,1839.1,1.0871]
[1746200109424,4.95330316,1839.2,1839.1,1.0871]
[1746200111241,4.95334316,1839.2,1839.1,1.0871]
[1746200111631,4.48358,1839.2,1839.1,1.0871]
[1746200111827,4.95259389,1839.2,1839.1,1.0871]
[1746200112629,4.95239358,1839.2,1839.1,1.0871]
[1746200112834,6.58293358,1839.2,1838.8,44.0078]
[1746200113036,1.08721,1839.0,1838.9,1.08716]
[1746200113242,1.55566038,1839.0,1838.9,1.08716]
[1746200113446,1.08728,1838.8,1838.7,4.7723]
[1746200113636,1.08728,1838.8,1838.7,1.0873]
[1746200113843,1.08728,1838.8,1838.6,3.1839]
[1746200113844,1.08734,1838.7,1838.6,4.27126]
[1746200114044,2.72984,1838.7,1838.6,2.71826]
[1746200114247,1.08746,1838.6,1838.5,1.08742]
[1746200114439,4.25576,1838.6,1838.5,1.08742]
[1746200115041,3.1683,1838.6,1838.5,1.08742]
[1746200115437,1.6425,1838.6,1838.5,1.08742]
[1746200115647,3.2078,1838.9,1838.8,1.08728]
[1746200115843,4.8106,1838.9,1838.8,1.08728]
[1746200116441,4.8106,1838.9,1838.8,2.58048]
[1746200117548,4.8106,1838.9,1838.8,4.17258]
[1746200118743,4.8106,1838.9,1838.8,2.58048]
[1746200120242,3.2078,1839.2,1839.1,1.0871]
[1746200120547,1.6374,1839.2,1839.1,1.0871]
[1746200121146,2.10557636,1839.2,1839.1,1.0871]
[1746200121446,0.46816196,1839.2,1839.1,1.0871]
[1746200121643,0.46816196,1839.2,1839.1,2.5762]
[1746200122042,1.692,1839.4,1839.3,1.08698]
[1746200122548,3.2078,1839.5,1839.4,1.08693]
[1746200122749,3.67653821,1839.5,1839.4,1.08693]
[1746200123448,5.36853821,1839.5,1839.4,1.08693]
[1746200126151,4.8998,1839.5,1839.4,1.08693]
[1746200126447,2.16212267,1839.5,1839.4,1.08693]
[1746200126648,0.47012267,1839.5,1839.4,9.73918152]
[1746200127042,0.47012267,1839.5,1839.4,10.89343]
[1746200127546,0.47012267,1839.5,1839.4,1.08693]
[1746200127746,0.47090362,1839.5,1839.4,1.08693]
[1746200127948,3.25237362,1839.5,1839.4,1.08693]
[1746200128250,2.16550362,1839.5,1839.4,1.08693]
[1746200129355,2.16527277,1839.5,1839.4,1.08693]
[1746200130456,0.47067277,1839.5,1839.4,1.08693]
[1746200130642,0.47067277,1839.5,1839.4,9.68403]
[1746200131048,0.47067277,1839.5,1839.4,50.48403]
[1746200131355,1.6207,1839.8,1839.7,1.08675]
[1746200131550,2.09144467,1839.8,1839.7,1.08675]
[1746200132256,0.47074467,1839.8,1839.7,6.47605]
[1746200132743,1.6207,1839.9,1839.8,1.08669]
[1746200133250,1.6207,1839.9,1839.8,2.79199]
[1746200133557,1.6207,1839.9,1839.8,1.08669]
[1746200134056,4.32113,1839.9,1839.8,1.08669]
[1746200134456,1.08669,1839.8,1839.7,4.77073]
[1746200134651,1.08675,1839.7,1839.6,7.01879]
[1746200134859,6.5451,1839.8,1839.7,1.08675]
[1746200135051,3.3373,1839.8,1839.7,1.08675]
[1746200135354,4.42399,1839.8,1839.7,1.08675]
[1746200135555,1.08675,1839.7,1839.6,5.932]
[1746200135757,1.7084,1839.7,1839.6,7.01875]
[1746200136249,2.79515,1839.7,1839.6,7.01875]
[1746200136656,1.7084,1839.7,1839.6,7.01875]
[1746200136858,2.17878428,1839.7,1839.6,7.01875]
[1746200137056,2.17878428,1839.7,1839.6,1.08675]
[1746200138257,2.17824309,1839.7,1839.5,2.58212]
[1746200138555,3.27275309,1839.6,1839.5,1.08687]
[1746200138757,2.18594309,1839.6,1839.5,1.08687]
[1746200139265,3.27275309,1839.6,1839.5,1.08687]
[1746200139960,2.1858314,1839.6,1839.5,1.08687]
[1746200140159,3.2726414,1839.6,1839.5,1.08687]
[1746200141165,2.1858314,1839.6,1839.5,1.08687]
[1746200141366,0.4697314,1839.6,1839.5,9.29467]
[1746200141862,3.57147033,1840.1,1840.0,1.08657]
[1746200142065,5.28877033,1840.1,1840.0,1.08657]
[1746200142255,6.37528033,1840.1,1840.0,1.08657]
[1746200144167,5.28877033,1840.1,1840.0,1.08657]
[1746200144370,6.37528033,1840.1,1840.0,1.08657]
[1746200144964,1.08657,1840.0,1839.9,40.8]
[1746200145163,1.08669,1839.8,1839.7,3.2078]
[1746200145367,1.08669,1839.8,1839.7,1.08671]
[1746200145868,2.7464,1839.9,1839.8,1.08669]
[1746200146070,1.0867,1839.9,1839.8,1.08669]
[1746200146864,1.08675,1839.7,1839.6,41.88678]
[1746200147170,1.08675,1839.7,1839.6,1.08678]
[1746200147468,4.7531,1839.8,1839.5,41.88685]
[1746200147469,1.08681,1839.6,1839.5,41.88685]
[1746200147668,2.71571,1839.6,1839.5,1.08685]
[1746200148369,1.08687,1839.5,1839.4,4.76987]
[1746200148569,1.08687,1839.5,1839.4,1.08687]
[1746200149269,1.6289,1839.6,1839.5,1.08687]
[1746200149270,2.71576,1839.6,1839.5,1.08687]
[1746200150657,1.6289,1839.6,1839.5,1.08687]
[1746200150859,2.71571,1839.6,1839.5,1.08687]
[1746200153575,1.08693,1839.5,1839.4,1.08689]
[1746200153773,1.55282279,1839.5,1839.4,1.08689]
[1746200153973,1.55281576,1839.5,1839.4,1.08689]
[1746200155175,1.08693,1839.5,1839.4,1.08689]
[1746200155374,1.55280166,1839.5,1839.4,1.08689]
[1746200156276,1.55289793,1839.5,1839.4,1.08689]
[1746200156577,0.46595448,1839.5,1839.4,1.08689]
[1746200156767,2.71575,1839.6,1839.5,1.08687]
[1746200157167,3.18190554,1839.6,1839.5,1.08687]
[1746200158568,0.46615554,1839.6,1839.5,1.08687]
[1746200158968,0.46615554,1839.6,1839.5,6.14677]
[1746200159275,6.77927033,1839.8,1839.7,1.08675]
[1746200159478,7.24568431,1839.8,1839.7,1.08675]
[1746200159676,7.24568639,1839.8,1839.7,1.08675]
[1746200160178,4.03788639,1839.8,1839.7,1.08675]
[1746200160572,4.03789458,1839.8,1839.7,4.76775]
[1746200160870,4.03789458,1839.8,1839.7,7.97555]
[1746200161077,4.03767663,1839.8,1839.7,7.97555]
[1746200161381,4.03765556,1839.8,1839.7,7.97555]
[1746200161676,0.46618523,1839.8,1839.7,7.97555]
[1746200162075,3.57147033,1840.1,1840.0,1.08657]
[1746200162278,4.03768733,1840.1,1840.0,1.08657]
[1746200162671,4.03768733,1840.1,1840.0,2.83227]
[1746200162871,3.57147033,1840.1,1840.0,2.83227]
[1746200163072,4.03764011,1840.1,1840.0,2.83227]
[1746200163578,4.03764011,1840.1,1840.0,6.51227]
[1746200164379,4.03720778,1840.1,1840.0,6.51227]
[1746200164979,4.03720778,1840.1,1840.0,1.08657]
[1746200165281,2.22221409,1840.1,1840.0,1.08657]
[1746200165481,2.22217687,1840.1,1840.0,1.08657]
[1746200166484,2.22217687,1840.1,1840.0,2.77167]
[1746200166879,1.7571,1840.1,1840.0,2.77167]
[1746200167083,0.46485485,1840.1,1840.0,7.77167]
[1746200167382,1.6279,1840.4,1840.3,1.08639]
[1746200167681,3.17919167,1840.4,1840.3,41.88639]
[1746200167882,2.09286167,1840.4,1840.3,41.88639]
[1746200168080,3.17919167,1840.4,1840.3,40.8]
[1746200168276,1.0865,1840.2,1840.1,1.0865]
[1746200168671,1.08654,1840.1,1840.0,41.88655]
[1746200168875,3.17916483,1840.1,1840.0,41.88655]
[1746200169076,2.09262483,1840.1,1840.0,41.88655]
[1746200169574,2.09262483,1840.1,1840.0,40.8]
[1746200169769,1.08657,1840.0,1839.9,4.23518]
[1746200169974,3.17902812,1840.0,1839.9,1.08658]
[1746200170174,3.1790342,1840.0,1839.9,1.08658]
[1746200170376,2.0924642,1840.0,1839.9,1.08658]
[1746200170582,2.0924642,1840.0,1839.9,2.65818]
[1746200172881,3.1790342,1840.0,1839.9,2.65818]
[1746200173077,3.1790342,1840.0,1839.9,1.08658]
[1746200173281,2.0924642,1840.0,1839.9,1.08658]
[1746200173683,3.1790342,1840.0,1839.9,1.08658]
[1746200173887,2.0924642,1840.0,1839.9,1.08658]
[1746200174184,2.09270474,1840.0,1839.9,1.08658]
[1746200174684,2.0927008,1840.0,1839.9,1.08658]
[1746200174985,1.6279,1840.0,1839.9,1.08658]
[1746200175182,3.17927376,1840.0,1839.9,1.08658]
[1746200175380,2.09270376,1840.0,1839.9,1.08658]
[1746200175881,0.46480376,1840.0,1839.9,2.80168]
[1746200176787,0.46480376,1840.0,1839.9,7.80168]
[1746200176983,3.57147033,1840.4,1840.0,2.71631]
[1746200177188,3.57147033,1840.4,1840.3,4.29419]
[1746200177389,4.03630422,1840.4,1840.3,4.29419]
[1746200177589,5.36483688,1840.4,1840.3,9.29419]
[1746200177792,5.36483688,1840.4,1840.3,50.09419]
[1746200178191,5.36483688,1840.4,1840.3,45.09419]
[1746200178888,5.82938067,1840.4,1840.3,45.09419]
[1746200179292,6.91571067,1840.4,1840.3,41.88639]
[1746200179484,5.82938067,1840.4,1840.3,41.88639]
[1746200180185,7.53094505,1840.4,1840.3,41.88639]
[1746200180381,7.53094505,1840.4,1840.3,45.09419]
[1746200180382,7.53094601,1840.4,1840.3,45.09419]
[1746200181383,2.16610913,1840.4,1840.3,45.09419]
[1746200183083,1.7017,1840.4,1840.3,45.09419]
[1746200183393,2.16607345,1840.4,1840.3,41.88639]
[1746200183791,2.16606334,1840.4,1840.3,41.88639]
[1746200183988,3.25239334,1840.4,1840.3,40.8]
[1746200184296,1.08644,1840.3,1840.2,1.08644]
[1746200184594,4.82340334,1840.3,1840.2,1.08644]
[1746200184795,4.35904,1840.3,1840.2,1.08644]
[1746200185094,4.82365771,1840.3,1840.2,1.08645]
[1746200185589,1.08651,1840.1,1840.0,40.8]
[1746200185896,1.55137765,1840.1,1840.0,41.88657]
[1746200186287,3.09322286,1840.1,1840.0,41.88657]
[1746200186889,2.62831,1840.1,1840.0,41.88657]
[1746200187182,3.09334358,1840.1,1840.0,41.88657]
[1746200187391,2.62831,1840.1,1840.0,1.08657]
[1746200187592,3.09380683,1840.1,1840.0,1.08657]
[1746200187787,3.09380683,1840.1,1839.9,41.88659]
[1746200187788,1.08657,1840.0,1839.9,41.88659]
[1746200187994,3.19120217,1840.0,1839.9,1.08659]
[1746200188193,1.08674,1839.8,1839.7,1.08671]
[1746200188392,1.6391,1839.9,1839.8,1.08669]
[1746200188899,2.10463217,1839.9,1839.8,1.08669]
[1746200189598,1.6391,1839.9,1839.8,1.08669]
[1746200190294,2.10475403,1839.9,1839.8,4.29449]
[1746200190500,2.10484073,1839.9,1839.8,5.87289]
[1746200190701,2.10484148,1839.9,1839.8,7.59129]
[1746200190901,1.6391,1839.9,1839.8,7.59129]
[1746200191395,2.10485775,1839.9,1839.8,5.87289]
[1746200191701,2.10496033,1839.9,1839.6,4.29457]
[1746200191903,4.83270033,1839.8,1839.6,4.29457]
[1746200192100,3.79334026,1839.7,1839.6,4.29457]
[1746200192301,3.79330924,1839.7,1839.4,44.0078]
[1746200192496,4.9314,1839.6,1839.1,3.2078]
[1746200192692,1.08708,1839.2,1839.0,9.93380023]
[1746200192899,2.18861929,1839.1,1839.0,8.30370023]
[1746200193102,2.18861929,1839.1,1839.0,7.21658023]
[1746200193397,6.48351929,1839.1,1839.0,7.21658023]
[1746200193796,6.48331533,1839.1,1839.0,7.21658023]
[1746200194196,6.48327613,1839.1,1839.0,7.21658023]
[1746200194401,5.39617613,1839.1,1839.0,8.30374023]
[1746200194700,6.48327613,1839.1,1839.0,8.30374023]
[1746200194901,6.48327613,1839.1,1839.0,7.21658023]
[1746200195297,1.08722,1838.9,1838.8,12.77380615]
[1746200195495,4.29502,1838.9,1838.8,12.77380615]
[1746200195695,5.1688905,1838.9,1838.8,12.77380615]
[1746200195891,6.96103552,1838.9,1838.8,12.77380615]
[1746200196092,1.55103411,1838.9,1838.8,12.77380615]
[1746200196294,1.08728,1838.8,1838.7,19.09262368]
[1746200196497,1.55100609,1838.8,1838.7,1.08729]
[1746200197002,1.08734,1838.7,1838.6,1.08736]
[1746200197193,1.08734,1838.7,1838.6,1.08735]
[1746200197194,0.46372609,1838.7,1838.6,1.08735]
[1746200197602,4.29505,1838.9,1838.8,1.08728]
[1746200197802,1.08729,1838.8,1838.7,1.0873]
[1746200197991,1.55022407,1838.8,1838.7,1.0873]
[1746200198400,3.19172407,1838.8,1838.7,1.0873]
[1746200198806,3.19153311,1838.8,1838.7,1.0873]
[1746200199404,2.10424311,1838.8,1838.7,1.0873]
[1746200199994,2.10424311,1838.8,1838.6,1.6558]
[1746200200199,1.6415,1838.8,1838.7,1.08734]
[1746200200503,3.161,1838.8,1838.7,1.08734]
[1746200200703,3.62385023,1838.8,1838.4,4.8427]
[1746200200898,4.9224,1838.7,1838.5,1.08742]
[1746200201105,2.80202,1838.6,1838.5,1.08742]